[Event "44th Chess Olympiad Open 2022"]
[Site "Chennai"]
[Date "2022.07.31"]
[Round "3.83"]
[White "Stratonowitsch, Andre"]
[Black "Drayton, Anthony"]
[Result "1-0"]
[WhiteElo "2142"]
[BlackElo "1928"]
[Annotator "NA RC"]
[PlyCount "141"]
[EventDate "2022.??.??"]
[TimeControl "60"]

1. e4 {[%emt 0:00:02]} c6 {[%emt 0:02:36]} 2. d4 {[%emt 0:00:13]} d5 {[%emt 0:
00:00]} 3. exd5 {[%emt 0:00:22]} cxd5 {[%emt 0:00:10]} 4. c4 {[%emt 0:00:12]}
Nf6 {[%emt 0:00:29]} 5. Nc3 {[%emt 0:00:27]} Nc6 {[%emt 0:00:14]} 6. Nf3 {
[%emt 0:01:05]} Bg4 {[%emt 0:00:31]} 7. cxd5 {[%emt 0:01:08]} Nxd5 {[%emt 0:00:
00]} 8. Qb3 {[%emt 0:00:26]} Bxf3 {[%emt 0:01:29]} 9. gxf3 {[%emt 0:00:07]} e6
{[%emt 0:13:37]} 10. Qxb7 {[%emt 0:01:08]} Nxd4 {[%emt 0:00:43]} 11. Bb5+ {
[%emt 0:01:07]} Nxb5 {[%emt 0:00:14]} 12. Qc6+ {[%emt 0:00:06]} Ke7 {[%emt 0:
00:00]} 13. Qxb5 {[%emt 0:05:48]} Nxc3 {[%emt 0:05:34]} 14. bxc3 {[%emt 0:00:
00]} f6 {[%emt 0:01:37]} 15. Qb7+ {[%emt 0:05:08]} Ke8 {[%emt 0:00:14]} 16. Be3
{[%emt 0:08:54]} Qc8 {[%emt 0:00:47]} 17. Qxc8+ {[%emt 0:11:39]} Rxc8 {[%emt 0:
00:00]} 18. Bxa7 {[%emt 0:00:07]} Rxc3 {[%emt 0:00:16]} 19. Ke2 {[%emt 0:03:32]
} Ra3 {[%emt 0:00:14]} 20. Bd4 {[%emt 0:03:38]} Bd6 {[%emt 0:00:10]} 21. Rhb1 {
[%emt 0:09:40]} Ra4 {[%emt 0:02:19]} 22. Bc3 {[%emt 0:05:09]} Rf8 {[%emt 0:00:
00]} 23. Rb6 {[%emt 0:05:49]} Bxh2 {[%emt 0:00:10]} 24. Rxe6+ {[%emt 0:01:10]}
Kf7 {[%emt 0:00:08]} 25. Re4 {[%emt 0:00:39]} Rfa8 {[%emt 0:00:42]} 26. Rxa4 {
[%emt 0:09:23]} Rxa4 {[%emt 0:00:06]} 27. a3 {[%emt 0:01:44]} Bd6 {[%emt 0:00:
00]} 28. Bb2 {[%emt 0:00:05]} h5 {[%emt 0:00:15]} 29. Rd1 {[%emt 0:03:12]} Ke6
{[%emt 0:01:45]} 30. Kf1 {[%emt 0:00:07]} Ra5 {[%emt 0:01:05]} 31. Rd3 {
[%emt 0:04:30]} Rg5 {[%emt 0:01:03]} 32. Bc1 {[%emt 0:02:02]} Rc5 {[%emt 0:00:
00]} 33. Bd2 {[%emt 0:02:00]} Rc4 {[%emt 0:00:19]} 34. Kg2 {[%emt 0:01:17]} g6
{[%emt 0:02:28]} 35. Rb3 {[%emt 0:02:48]} Kd5 {[%emt 0:02:03]} 36. Bb4 {
[%emt 0:02:48]} Be5 {[%emt 0:02:00]} 37. Rd3+ {[%emt 0:00:48]} Bd4 {[%emt 0:00:
00]} 38. Rd2 {[%emt 0:00:50]} Rc1 {[%emt 0:00:24]} 39. Be7 {[%emt 0:01:51]} Rc6
{[%emt 0:03:47]} 40. Bb4 {[%emt 0:03:09]} Kc4 {[%emt 0:01:48]} 41. Rc2+ {
[%emt 0:02:24]} Kb5 {[%emt 0:00:31]} 42. a4+ {[%emt 0:07:01]} Kb6 {[%emt 0:00:
00]} 43. Rxc6+ {[%emt 0:06:14]} Kxc6 {[%emt 0:01:24]} 44. Kg3 {[%emt 0:02:32]}
Kd5 {[%emt 0:00:35]} 45. a5 {[%emt 0:02:14]} Kc4 {[%emt 0:00:11]} 46. Bd2 {
[%emt 0:00:58]} Kb5 {[%emt 0:00:30]} 47. f4 {[%emt 0:04:56]} f5 {[%emt 0:00:27]
} 48. Be1 {[%emt 0:05:34]} Bf6 {[%emt 0:00:34]} 49. Bd2 {[%emt 0:00:23]} Bd8 {
[%emt 0:00:11]} 50. Bc3 {[%emt 0:00:03]} Bxa5 {[%emt 0:00:47]} 51. Bf6 {
[%emt 0:00:12]} Be1 {[%emt 0:00:38]} 52. Kf3 {[%emt 0:02:43]} Kc4 {[%emt 0:00:
00]} 53. Ke3 {[%emt 0:01:35]} Bc3 {[%emt 0:00:16]} 54. Bd8 {[%emt 0:00:10]}
Bd4+ {[%emt 0:00:18]} 55. Kf3 {[%emt 0:00:23]} Kd3 {[%emt 0:01:25]} 56. Be7 {
[%emt 0:01:16]} Kd2 {[%emt 0:00:15]} 57. Bb4+ {[%emt 0:00:08]} Bc3 {[%emt 0:00:
00]} 58. Bc5 {[%emt 0:00:06]} Ke1 {[%emt 0:00:09]} 59. Bb6 {[%emt 0:00:29]} Kf1
{[%emt 0:00:13]} 60. Bc5 {[%emt 0:00:30]} Kg1 {[%emt 0:00:38]} 61. Kg3 {
[%emt 0:00:47]} Be1 {[%emt 0:00:30]} 62. Bb6 {[%emt 0:00:30]} Bxf2+ {[%emt 0:
00:00]} 63. Bxf2+ {[%emt 0:00:21]} Kf1 {[%emt 0:01:24]} 64. Bc5 {[%emt 0:00:29]
} Ke2 {[%emt 0:00:12]} 65. Bb6 {[%emt 0:00:42]} Kd3 {[%emt 0:00:31]} 66. Kf3 {
[%emt 0:00:17]} h4 {[%emt 0:00:20]} 67. Bd8 {[%emt 0:00:15]} h3 {[%emt 0:00:07]
} 68. Kg3 {[%emt 0:00:05]} Ke4 {[%emt 0:00:23]} 69. Bg5 {[%emt 0:00:19]} h2 {
[%emt 0:00:19]} 70. Kxh2 {[%emt 0:00:18]} Kf3 {[%emt 0:00:09]} 71. Kg1 {
[%emt 0:03:21]} 1-0

[Event "44th Chess Olympiad Open 2022"]
[Site "Chennai"]
[Date "2022.07.31"]
[Round "3.83"]
[White "Ramachandran, R..."]
[Black "Lee, Ethan"]
[Result "0-1"]
[WhiteElo "1994"]
[BlackElo "1629"]
[Annotator "NA"]
[PlyCount "100"]
[EventDate "2022.??.??"]
[TimeControl "60"]

1. e4 {[%emt 0:00:04]} e5 {[%emt 0:00:17]} 2. c4 {[%emt 0:02:06]} Nf6 {[%emt 0:
00:00]} 3. d3 {[%emt 0:02:16]} Bc5 {[%emt 0:01:40]} 4. h3 {[%emt 0:00:36]} c6 {
[%emt 0:02:01]} 5. Nf3 {[%emt 0:07:57]} d6 {[%emt 0:00:30]} 6. Qe2 {[%emt 0:00:
00]} O-O {[%emt 0:01:04]} 7. Be3 {[%emt 0:03:25]} Bxe3 {[%emt 0:01:30]} 8. Qxe3
{[%emt 0:00:29]} Re8 {[%emt 0:00:38]} 9. Be2 {[%emt 0:00:22]} d5 {[%emt 0:00:
00]} 10. cxd5 {[%emt 0:02:59]} cxd5 {[%emt 0:00:54]} 11. O-O {[%emt 0:02:10]}
d4 {[%emt 0:02:41]} 12. Qc1 {[%emt 0:03:21]} Nc6 {[%emt 0:00:21]} 13. Nbd2 {
[%emt 0:01:27]} Nh5 {[%emt 0:08:45]} 14. Nc4 {[%emt 0:01:50]} Nf4 {[%emt 0:00:
00]} 15. Re1 {[%emt 0:03:13]} Qf6 {[%emt 0:03:49]} 16. Nh4 {[%emt 0:12:57]}
Nxe2+ {[%emt 0:01:36]} 17. Rxe2 {[%emt 0:00:41]} Qxh4 {[%emt 0:00:04]} 18. Nd6
{[%emt 0:01:44]} Re7 {[%emt 0:10:27]} 19. Qc5 {[%emt 0:03:12]} Be6 {[%emt 0:00:
00]} 20. Rc2 {[%emt 0:02:13]} Qf6 {[%emt 0:09:26]} 21. b4 {[%emt 0:01:20]} Nd8
{[%emt 0:06:12]} 22. Rac1 {[%emt 0:00:59]} b6 {[%emt 0:01:37]} 23. Qb5 {
[%emt 0:03:42]} h6 {[%emt 0:09:59]} 24. Rc7 {[%emt 0:06:33]} Rxc7 {[%emt 0:00:
00]} 25. Rxc7 {[%emt 0:00:13]} Bxa2 {[%emt 0:01:07]} 26. Qe8+ {[%emt 0:05:28]}
Kh7 {[%emt 0:00:05]} 27. Nf5 {[%emt 0:02:49]} g6 {[%emt 0:03:29]} 28. Ne7 {
[%emt 0:00:50]} Qh8 {[%emt 0:00:36]} 29. Qa4 {[%emt 0:02:52]} Ne6 {[%emt 0:00:
00]} 30. Rb7 {[%emt 0:01:04]} Bb1 {[%emt 0:01:11]} 31. Qb5 {[%emt 0:01:34]} Qf6
{[%emt 0:01:00]} 32. Nd5 {[%emt 0:03:00]} Qg7 {[%emt 0:00:09]} 33. Rd7 {
[%emt 0:02:12]} Nf4 {[%emt 0:00:41]} 34. Nxf4 {[%emt 0:00:27]} exf4 {[%emt 0:
00:00]} 35. Qc6 {[%emt 0:00:13]} Rf8 {[%emt 0:00:30]} 36. Qc7 {[%emt 0:00:17]}
Bxd3 {[%emt 0:00:17]} 37. Qxa7 {[%emt 0:00:55]} b5 {[%emt 0:00:19]} 38. Rxd4 {
[%emt 0:00:36]} Bc4 {[%emt 0:00:16]} 39. Rd7 {[%emt 0:00:55]} Qf6 {[%emt 0:00:
00]} 40. Qc5 {[%emt 0:00:34]} Rd8 {[%emt 0:00:17]} 41. e5 {[%emt 0:30:43]} Qg5
{[%emt 0:31:57]} 42. e6 {[%emt 0:01:57]} Qxc5 {[%emt 0:01:13]} 43. bxc5 {
[%emt 0:00:15]} Re8 {[%emt 0:00:33]} 44. e7 {[%emt 0:00:20]} b4 {[%emt 0:00:00]
} 45. c6 {[%emt 0:00:00]} Bb5 {[%emt 0:00:00]} 46. Rb7 {[%emt 0:00:00]} Bxc6 {
[%emt 0:00:00]} 47. Rxb4 {[%emt 0:00:00]} f3 {[%emt 0:00:00]} 48. Rc4 {[%emt 0:
00:00]} Bd5 {[%emt 0:00:00]} 49. Rd4 {[%emt 0:00:00]} Be6 {[%emt 0:00:00]} 50.
Rd8 {[%emt 0:00:00]} Rxe7 {[%emt 0:00:00]} 0-1

[Event "44th Chess Olympiad Open 2022"]
[Site "Chennai"]
[Date "2022.07.31"]
[Round "3.83"]
[White "Neto, Roberto"]
[Black "Pillay, Ragul"]
[Result "1/2-1/2"]
[WhiteElo "1663"]
[BlackElo "1341"]
[Annotator "NA"]
[PlyCount "60"]
[EventDate "2022.??.??"]
[TimeControl "60"]

1. e4 {[%emt 0:01:12]} c5 {[%emt 0:00:33]} 2. Nf3 {[%emt 0:00:06]} Nc6 {
[%emt 0:00:21]} 3. d4 {[%emt 0:00:18]} cxd4 {[%emt 0:00:38]} 4. Nxd4 {[%emt 0:
00:00]} Nf6 {[%emt 0:00:32]} 5. Nc3 {[%emt 0:00:13]} e6 {[%emt 0:00:50]} 6. Bf4
{[%emt 0:04:39]} Bb4 {[%emt 0:02:25]} 7. f3 {[%emt 0:20:39]} Qa5 {[%emt 0:00:
00]} 8. Ndb5 {[%emt 0:06:10]} e5 {[%emt 0:08:42]} 9. Be3 {[%emt 0:05:31]} O-O {
[%emt 0:03:11]} 10. a3 {[%emt 0:04:13]} Bxc3+ {[%emt 0:04:58]} 11. Nxc3 {
[%emt 0:00:50]} h6 {[%emt 0:11:08]} 12. Bc4 {[%emt 0:00:53]} Rd8 {[%emt 0:00:
00]} 13. Qd6 {[%emt 0:10:24]} Ne8 {[%emt 0:04:19]} 14. Qd5 {[%emt 0:01:56]}
Qxd5 {[%emt 0:01:29]} 15. Bxd5 {[%emt 0:00:49]} Nc7 {[%emt 0:04:36]} 16. Ba2 {
[%emt 0:02:04]} b6 {[%emt 0:03:27]} 17. O-O {[%emt 0:01:01]} Bb7 {[%emt 0:00:
00]} 18. Rad1 {[%emt 0:00:40]} Rac8 {[%emt 0:02:18]} 19. Rd2 {[%emt 0:01:13]}
Ne6 {[%emt 0:03:07]} 20. Nd5 {[%emt 0:04:15]} Kf8 {[%emt 0:02:00]} 21. c3 {
[%emt 0:02:34]} Na5 {[%emt 0:04:17]} 22. Rfd1 {[%emt 0:02:03]} Nc4 {[%emt 0:00:
00]} 23. Bxc4 {[%emt 0:03:49]} Rxc4 {[%emt 0:00:38]} 24. Nb4 {[%emt 0:01:12]}
Rc7 {[%emt 0:01:36]} 25. Nd3 {[%emt 0:03:39]} f6 {[%emt 0:00:55]} 26. Nb4 {
[%emt 0:04:38]} Nc5 {[%emt 0:02:29]} 27. Bxc5+ {[%emt 0:01:01]} bxc5 {[%emt 0:
00:00]} 28. Nc2 {[%emt 0:04:25]} Bc6 {[%emt 0:00:41]} 29. Ne3 {[%emt 0:00:45]}
Ba4 {[%emt 0:01:22]} 30. Rb1 {[%emt 0:01:00]} Rb8 {[%emt 0:02:47]} 1/2-1/2

[Event "44th Chess Olympiad Open 2022"]
[Site "Chennai"]
[Date "2022.07.31"]
[Round "3.84"]
[White "Ashraf, Ahmed Ramadan"]
[Black "Escalante Ramirez, Brian Sebasti"]
[Result "0-1"]
[WhiteElo "1916"]
[BlackElo "2496"]
[Annotator "RC"]
[PlyCount "80"]
[EventDate "2022.??.??"]
[TimeControl "60"]

1. e4 {[%emt 0:00:04]} Nf6 {[%emt 0:00:16]} 2. e5 {[%emt 0:00:07]} Nd5 {
[%emt 0:00:13]} 3. c4 {[%emt 0:00:04]} Nb6 {[%emt 0:00:23]} 4. d4 {[%emt 0:00:
00]} d6 {[%emt 0:00:10]} 5. exd6 {[%emt 0:00:03]} cxd6 {[%emt 0:00:32]} 6. Nf3
{[%emt 0:00:10]} g6 {[%emt 0:01:25]} 7. Be2 {[%emt 0:00:22]} Bg7 {[%emt 0:00:
00]} 8. O-O {[%emt 0:00:38]} O-O {[%emt 0:00:28]} 9. Nc3 {[%emt 0:00:52]} Nc6 {
[%emt 0:01:03]} 10. h3 {[%emt 0:00:30]} h6 {[%emt 0:01:20]} 11. Bf4 {[%emt 0:
00:00]} e5 {[%emt 0:02:30]} 12. Be3 {[%emt 0:09:46]} Kh7 {[%emt 0:01:01]} 13.
a3 {[%emt 0:01:41]} f5 {[%emt 0:01:14]} 14. dxe5 {[%emt 0:01:42]} dxe5 {
[%emt 0:00:49]} 15. Nd5 {[%emt 0:02:59]} Bd7 {[%emt 0:13:55]} 16. Bxb6 {
[%emt 0:03:03]} axb6 {[%emt 0:00:33]} 17. Qb3 {[%emt 0:00:50]} e4 {[%emt 0:00:
00]} 18. Nh2 {[%emt 0:01:46]} Nd4 {[%emt 0:00:44]} 19. Qd1 {[%emt 0:00:41]} Ba4
{[%emt 0:01:42]} 20. Qd2 {[%emt 0:02:43]} Nb3 {[%emt 0:00:48]} 21. Qb4 {
[%emt 0:00:17]} Nxa1 {[%emt 0:00:36]} 22. Rxa1 {[%emt 0:00:22]} b5 {[%emt 0:00:
00]} 23. Nf1 {[%emt 0:01:09]} bxc4 {[%emt 0:01:12]} 24. Nb6 {[%emt 0:00:36]}
Ra7 {[%emt 0:01:29]} 25. Nxa4 {[%emt 0:00:25]} Qa5 {[%emt 0:02:26]} 26. Qxa5 {
[%emt 0:01:37]} Rxa5 {[%emt 0:00:03]} 27. Nc3 {[%emt 0:00:23]} b5 {[%emt 0:00:
00]} 28. Rc1 {[%emt 0:07:22]} Rd8 {[%emt 0:04:05]} 29. g3 {[%emt 0:00:31]} Be5
{[%emt 0:05:43]} 30. Rc2 {[%emt 0:00:58]} Kg7 {[%emt 0:01:46]} 31. h4 {[%emt 0:
00:00]} Kf6 {[%emt 0:01:14]} 32. Ne3 {[%emt 0:00:52]} Bxc3 {[%emt 0:02:55]} 33.
Rxc3 {[%emt 0:08:12]} Rd2 {[%emt 0:00:30]} 34. Rc2 {[%emt 0:02:13]} Rxc2 {
[%emt 0:04:36]} 35. Nxc2 {[%emt 0:00:02]} g5 {[%emt 0:00:58]} 36. hxg5+ {
[%emt 0:00:06]} hxg5 {[%emt 0:00:02]} 37. Nd4 {[%emt 0:01:34]} f4 {[%emt 0:00:
00]} 38. Bg4 {[%emt 0:01:17]} b4 {[%emt 0:00:45]} 39. Nc2 {[%emt 0:05:20]} c3 {
[%emt 0:02:28]} 40. bxc3 {[%emt 0:02:36]} b3 {[%emt 0:02:33]} 0-1

[Event "44th Chess Olympiad Open 2022"]
[Site "Chennai"]
[Date "2022.07.31"]
[Round "3.84"]
[White "Enemchukwu Chinedu Benjamin"]
[Black "Muhammed, Shuaau"]
[Result "1/2-1/2"]
[WhiteElo "1889"]
[BlackElo "1987"]
[Annotator "NA RC"]
[PlyCount "94"]
[EventDate "2022.??.??"]
[TimeControl "60"]

1. e4 {[%emt 0:00:03]} e5 {[%emt 0:00:15]} 2. d4 {[%emt 0:00:06]} exd4 {
[%emt 0:00:02]} 3. c3 {[%emt 0:00:14]} dxc3 {[%emt 0:00:19]} 4. Nxc3 {[%emt 0:
00:00]} Bb4 {[%emt 0:07:56]} 5. Nf3 {[%emt 0:00:36]} d6 {[%emt 0:02:35]} 6. Bc4
{[%emt 0:00:19]} Bxc3+ {[%emt 0:01:35]} 7. bxc3 {[%emt 0:00:12]} Nc6 {[%emt 0:
00:00]} 8. O-O {[%emt 0:03:13]} Bg4 {[%emt 0:03:11]} 9. Qb3 {[%emt 0:02:13]}
Bxf3 {[%emt 0:00:10]} 10. Bxf7+ {[%emt 0:00:22]} Kf8 {[%emt 0:00:01]} 11. Bxg8
{[%emt 0:04:00]} Rxg8 {[%emt 0:11:47]} 12. gxf3 {[%emt 0:00:08]} g5 {[%emt 0:
00:00]} 13. c4 {[%emt 0:01:51]} Ne5 {[%emt 0:04:45]} 14. Bb2 {[%emt 0:03:45]}
Ng6 {[%emt 0:04:41]} 15. c5 {[%emt 0:01:21]} Nh4 {[%emt 0:09:08]} 16. cxd6 {
[%emt 0:00:44]} Qd7 {[%emt 0:02:42]} 17. Kh1 {[%emt 0:02:06]} cxd6 {[%emt 0:00:
00]} 18. Rad1 {[%emt 0:00:48]} Qh3 {[%emt 0:09:46]} 19. Rg1 {[%emt 0:00:14]}
Qxf3+ {[%emt 0:01:37]} 20. Qxf3+ {[%emt 0:00:30]} Nxf3 {[%emt 0:00:02]} 21. Rg3
{[%emt 0:00:09]} g4 {[%emt 0:02:01]} 22. h3 {[%emt 0:02:44]} h5 {[%emt 0:02:52]
} 23. hxg4 {[%emt 0:00:02]} hxg4 {[%emt 0:00:07]} 24. Rxd6 {[%emt 0:01:37]} Ke7
{[%emt 0:11:49]} 25. Rh6 {[%emt 0:02:01]} Kd7 {[%emt 0:02:44]} 26. Rh7+ {
[%emt 0:02:10]} Kc6 {[%emt 0:00:11]} 27. Rg7 {[%emt 0:00:15]} Rh8+ {[%emt 0:00:
00]} 28. Kg2 {[%emt 0:00:45]} Rh2+ {[%emt 0:00:16]} 29. Kf1 {[%emt 0:00:19]}
Rh1+ {[%emt 0:00:02]} 30. Ke2 {[%emt 0:00:20]} Re1+ {[%emt 0:00:02]} 31. Kd3 {
[%emt 0:00:20]} Rd8+ {[%emt 0:00:02]} 32. Kc3 {[%emt 0:02:01]} Ne5 {[%emt 0:00:
00]} 33. Kb3 {[%emt 0:00:45]} Rxe4 {[%emt 0:01:30]} 34. Bxe5 {[%emt 0:00:24]}
Rxe5 {[%emt 0:00:02]} 35. R7xg4 {[%emt 0:00:11]} Rd6 {[%emt 0:01:29]} 36. Rc4+
{[%emt 0:00:43]} Kb6 {[%emt 0:00:30]} 37. f4 {[%emt 0:00:18]} Rb5+ {[%emt 0:00:
00]} 38. Kc2 {[%emt 0:01:08]} Rf6 {[%emt 0:00:31]} 39. Rf3 {[%emt 0:00:21]} Rc5
{[%emt 0:00:41]} 40. Kd3 {[%emt 0:00:34]} a5 {[%emt 0:01:14]} 41. Rxc5 {
[%emt 0:31:05]} Kxc5 {[%emt 0:30:01]} 42. Ke4 {[%emt 0:00:02]} b5 {[%emt 0:00:
00]} 43. f5 {[%emt 0:00:29]} b4 {[%emt 0:00:00]} 44. Ke5 {[%emt 0:00:00]} Rf8 {
[%emt 0:00:00]} 45. f6 {[%emt 0:00:00]} a4 {[%emt 0:00:00]} 46. f7 {[%emt 0:00:
00]} Kc4 {[%emt 0:00:00]} 47. Ke6 {[%emt 0:00:00]} b3 {[%emt 0:00:00]} 1/2-1/2

[Event "44th Chess Olympiad Open 2022"]
[Site "Chennai"]
[Date "2022.07.31"]
[Round "3.85"]
[White "Thomas, Larry"]
[Black "Berardi, Giancarlo"]
[Result "1-0"]
[WhiteElo "1317"]
[BlackElo "1757"]
[Annotator "NA RC"]
[PlyCount "203"]
[EventDate "2022.??.??"]
[TimeControl "60"]

1. d4 {[%emt 0:04:21]} d5 {[%emt 0:00:29]} 2. Nc3 {[%emt 0:00:10]} Nf6 {
[%emt 0:00:48]} 3. Bf4 {[%emt 0:00:11]} c6 {[%emt 0:05:29]} 4. e3 {[%emt 0:00:
00]} Bf5 {[%emt 0:04:52]} 5. Bd3 {[%emt 0:01:23]} Bxd3 {[%emt 0:05:30]} 6. cxd3
{[%emt 0:02:39]} Nbd7 {[%emt 0:03:37]} 7. Nf3 {[%emt 0:03:54]} e6 {[%emt 0:00:
00]} 8. O-O {[%emt 0:07:01]} Be7 {[%emt 0:01:03]} 9. e4 {[%emt 0:02:48]} dxe4 {
[%emt 0:05:54]} 10. dxe4 {[%emt 0:00:30]} O-O {[%emt 0:01:04]} 11. Qc2 {
[%emt 0:05:13]} h6 {[%emt 0:09:56]} 12. h3 {[%emt 0:00:42]} Rc8 {[%emt 0:05:00]
} 13. Rad1 {[%emt 0:01:03]} Re8 {[%emt 0:10:20]} 14. Rfe1 {[%emt 0:00:46]} Bb4
{[%emt 0:03:17]} 15. Qb3 {[%emt 0:09:50]} Qb6 {[%emt 0:13:52]} 16. Bd2 {
[%emt 0:24:42]} Be7 {[%emt 0:02:11]} 17. Qc2 {[%emt 0:02:24]} Qc7 {[%emt 0:00:
00]} 18. Be3 {[%emt 0:02:15]} Nb6 {[%emt 0:01:05]} 19. Qb3 {[%emt 0:03:37]}
Rcd8 {[%emt 0:02:27]} 20. a4 {[%emt 0:02:22]} a5 {[%emt 0:02:10]} 21. d5 {
[%emt 0:01:30]} Bb4 {[%emt 0:04:24]} 22. d6 {[%emt 0:04:08]} Rxd6 {[%emt 0:00:
00]} 23. Rxd6 {[%emt 0:03:21]} Qxd6 {[%emt 0:03:18]} 24. e5 {[%emt 0:03:01]}
Qc7 {[%emt 0:00:32]} 25. Bxb6 {[%emt 0:02:47]} Qxb6 {[%emt 0:00:33]} 26. exf6 {
[%emt 0:00:05]} gxf6 {[%emt 0:00:27]} 27. Rd1 {[%emt 0:01:25]} Qc7 {[%emt 0:00:
00]} 28. Ne4 {[%emt 0:01:10]} Kg7 {[%emt 0:01:00]} 29. Qd3 {[%emt 0:01:16]} Rb8
{[%emt 0:02:27]} 30. Nh4 {[%emt 0:01:34]} Qf4 {[%emt 0:00:21]} 31. Qg3+ {
[%emt 0:00:47]} Qxg3 {[%emt 0:00:22]} 32. Nxg3 {[%emt 0:00:02]} b5 {[%emt 0:00:
00]} 33. axb5 {[%emt 0:00:24]} cxb5 {[%emt 0:00:20]} 34. Nf3 {[%emt 0:00:02]}
Bc5 {[%emt 0:00:42]} 35. Ne2 {[%emt 0:00:11]} b4 {[%emt 0:00:32]} 36. Kf1 {
[%emt 0:00:02]} a4 {[%emt 0:00:38]} 37. Nc1 {[%emt 0:02:25]} a3 {[%emt 0:00:36]
} 38. b3 {[%emt 0:01:00]} Ra8 {[%emt 0:00:43]} 39. Na2 {[%emt 0:00:11]} Ra5 {
[%emt 0:00:43]} 40. Ne1 {[%emt 0:00:10]} Rb5 {[%emt 0:00:55]} 41. Nc2 {[%emt 0:
00:00]} Be7 {[%emt 0:30:20]} 42. Ke2 {[%emt 0:05:31]} e5 {[%emt 0:01:00]} 43.
Rd7 {[%emt 0:01:56]} Kf8 {[%emt 0:00:00]} 44. Ne3 {[%emt 0:00:00]} Bc5 {
[%emt 0:00:00]} 45. Nf5 {[%emt 0:00:00]} Rb8 {[%emt 0:00:00]} 46. Nxh6 {
[%emt 0:00:00]} Kg7 {[%emt 0:00:00]} 47. Nxf7 {[%emt 0:00:00]} Kg6 {[%emt 0:00:
00]} 48. Nd6 {[%emt 0:00:00]} Bd4 {[%emt 0:00:00]} 49. Rb7 {[%emt 0:03:40]} Rd8
{[%emt 0:00:00]} 50. Nc4 {[%emt 0:00:00]} Bc3 {[%emt 0:00:00]} 51. Nxc3 {
[%emt 0:00:00]} bxc3 {[%emt 0:00:00]} 52. Nxa3 {[%emt 0:00:00]} Rd2+ {[%emt 0:
00:00]} 53. Ke1 {[%emt 0:00:00]} Ra2 {[%emt 0:00:00]} 54. Rc7 {[%emt 0:00:00]}
Rxa3 {[%emt 0:00:00]} 55. Rxc3 {[%emt 0:00:00]} e4 {[%emt 0:00:00]} 56. Ke2 {
[%emt 0:00:00]} f5 {[%emt 0:00:00]} 57. g3 {[%emt 0:00:00]} Kg5 {[%emt 0:00:00]
} 58. Ke3 {[%emt 0:00:00]} Ra1 {[%emt 0:00:00]} 59. Kd2 {[%emt 0:00:00]} Rb1 {
[%emt 0:00:00]} 60. Ke3 {[%emt 0:00:00]} Re1+ {[%emt 0:00:00]} 61. Kd4 {
[%emt 0:01:16]} Rd1+ {[%emt 0:00:00]} 62. Kc5 {[%emt 0:01:13]} Rd2 {[%emt 0:00:
00]} 63. f3 {[%emt 0:00:09]} Rd3 {[%emt 0:00:00]} 64. f4+ {[%emt 0:02:00]} Kf6
{[%emt 0:00:00]} 65. Kb4 {[%emt 0:00:03]} Rd4+ {[%emt 0:00:00]} 66. Ka3 {
[%emt 0:00:53]} Rd6 {[%emt 0:02:22]} 67. b4 {[%emt 0:00:04]} Re6 {[%emt 0:00:
00]} 68. Re3 {[%emt 0:00:03]} Ra6+ {[%emt 0:00:57]} 69. Kb3 {[%emt 0:00:04]}
Ke6 {[%emt 0:01:20]} 70. b5 {[%emt 0:00:19]} Rb6 {[%emt 0:00:30]} 71. Kb4 {
[%emt 0:00:04]} Kd5 {[%emt 0:02:23]} 72. Ka5 {[%emt 0:00:44]} Rb8 {[%emt 0:00:
00]} 73. Ka6 {[%emt 0:00:52]} Kd4 {[%emt 0:00:11]} 74. Re1 {[%emt 0:02:02]} e3
{[%emt 0:00:35]} 75. b6 {[%emt 0:01:05]} Kd3 {[%emt 0:00:44]} 76. Ka7 {[%emt 0:
00:00]} Rh8 {[%emt 0:03:23]} 77. b7 {[%emt 0:00:42]} Kd2 {[%emt 0:00:44]} 78.
Rh1 {[%emt 0:01:08]} e2 {[%emt 0:01:55]} 79. b8=Q {[%emt 0:00:23]} Rxb8 {
[%emt 0:00:53]} 80. Kxb8 {[%emt 0:00:03]} e1=Q {[%emt 0:01:12]} 81. Rxe1 {
[%emt 0:00:04]} Kxe1 {[%emt 0:00:22]} 82. h4 {[%emt 0:00:03]} Kf2 {[%emt 0:00:
00]} 83. h5 {[%emt 0:00:22]} Kxg3 {[%emt 0:00:05]} 84. h6 {[%emt 0:00:02]} Kxf4
{[%emt 0:00:11]} 85. h7 {[%emt 0:00:19]} Ke3 {[%emt 0:00:08]} 86. h8=Q {
[%emt 0:00:12]} f4 {[%emt 0:00:12]} 87. Qc3+ {[%emt 0:00:09]} Ke2 {[%emt 0:00:
00]} 88. Qe5+ {[%emt 0:00:27]} Kf3 {[%emt 0:00:14]} 89. Qe1 {[%emt 0:00:30]}
Kg2 {[%emt 0:00:39]} 90. Qe2+ {[%emt 0:00:04]} Kg3 {[%emt 0:00:14]} 91. Qf1 {
[%emt 0:04:31]} f3 {[%emt 0:00:40]} 92. Kc7 {[%emt 0:00:18]} f2 {[%emt 0:00:42]
} 93. Kd6 {[%emt 0:00:11]} Kf3 {[%emt 0:00:28]} 94. Kd5 {[%emt 0:00:15]} Ke3 {
[%emt 0:00:21]} 95. Kc4 {[%emt 0:01:12]} Kf3 {[%emt 0:00:32]} 96. Kd3 {[%emt 0:
00:00]} Kg3 {[%emt 0:00:28]} 97. Ke3 {[%emt 0:00:10]} Kh2 {[%emt 0:00:16]} 98.
Qxf2+ {[%emt 0:00:35]} Kh1 {[%emt 0:00:08]} 99. Qf3+ {[%emt 0:02:24]} Kh2 {
[%emt 0:00:05]} 100. Qg4 {[%emt 0:00:31]} Kh1 {[%emt 0:00:10]} 101. Kf2 {
[%emt 0:00:21]} Kh2 {[%emt 0:00:10]} 102. Qg2# {[%emt 0:00:15]} 1-0